[Event "Titled Tuesday Blitz March 01 Early 2022"]
[White "milenapn"]
[Black "Pasti, Aron"]
[BlackFideId "785857"]
[WhiteElo "2130"]
[BlackElo "2080"]
[Result "0-1"]
[Round "03"]
[TimeControl "180+1"]
[Date "2022.03.01"]
[WhiteClock "0:00:04"]
[BlackClock "0:00:35"]

1. e4 {[%clk 0:03:00]}  e5 {[%clk 0:02:56]} 2. Bc4 {[%clk 0:02:57]}  Nf6 {[%clk 0:02:52]} 3. d3 {[%clk 0:02:56]}  c6 {[%clk 0:02:51]} 4. Nf3 {[%clk 0:02:51]}  d5 {[%clk 0:02:50]} 5. Bb3 {[%clk 0:02:50]}  Qc7 {[%clk 0:02:45]} 6. O-O {[%clk 0:02:48]}  Bd6 {[%clk 0:02:42]} 7. Re1 {[%clk 0:02:36]}  O-O {[%clk 0:02:38]} 8. Bg5 {[%clk 0:02:27]}  Nbd7 {[%clk 0:02:29]} 9. Nc3 {[%clk 0:02:25]}  dxe4 {[%clk 0:02:25]} 10. dxe4 {[%clk 0:02:19]}  Re8 {[%clk 0:02:12]} 11. Qe2 {[%clk 0:01:45]}  b5 {[%clk 0:02:05]} 12. Rad1 {[%clk 0:01:17]}  a5 {[%clk 0:02:01]} 13. a4 {[%clk 0:01:16]}  Ba6 {[%clk 0:01:59]} 14. Nxb5 {[%clk 0:01:15]}  cxb5 {[%clk 0:02:00]} 15. axb5 {[%clk 0:01:09]}  Bb7 {[%clk 0:01:58]} 16. Nh4 {[%clk 0:00:51]}  h6 {[%clk 0:01:51]} 17. Bxf6 {[%clk 0:00:25]}  Nxf6 {[%clk 0:01:52]} 18. Nf5 {[%clk 0:00:25]}  Bf8 {[%clk 0:01:45]} 19. b6 {[%clk 0:00:08]}  Qxb6 {[%clk 0:01:39]} 20. Qc4 {[%clk 0:00:08]}  Qe6 {[%clk 0:01:16]} 21. Qc7 {[%clk 0:00:05]}  Bd5 {[%clk 0:00:55]} 22. Bxd5 {[%clk 0:00:03]}  Nxd5 {[%clk 0:00:52]} 23. Rxd5 {[%clk 0:00:04]}  Rec8 {[%clk 0:00:39]} 24. Qd7 {[%clk 0:00:04]}  Rxc2 {[%clk 0:00:35]} 0-1


[Site "https://www.chess.com"]

[Event "Titled Tuesday Blitz March 01 Early 2022"]
[White "Aaditya Dhingra"]
[Black "Funderburg, John T"]
[WhiteFideId "25678191"]
[BlackFideId "2004992"]
[WhiteElo "1789"]
[BlackElo "2025"]
[Result "1-0"]
[Round "04"]
[TimeControl "180+1"]
[Date "2022.03.01"]
[WhiteClock "0:00:25"]
[BlackClock "0:00:06"]

1. Nf3 {[%clk 0:03:00]}  d5 {[%clk 0:02:55]} 2. c4 {[%clk 0:02:59]}  c6 {[%clk 0:02:51]} 3. g3 {[%clk 0:02:58]}  Nf6 {[%clk 0:02:50]} 4. Bg2 {[%clk 0:02:58]}  Bf5 {[%clk 0:02:51]} 5. O-O {[%clk 0:02:57]}  e6 {[%clk 0:02:51]} 6. b3 {[%clk 0:02:55]}  Be7 {[%clk 0:02:45]} 7. Bb2 {[%clk 0:02:54]}  O-O {[%clk 0:02:38]} 8. d3 {[%clk 0:02:52]}  h6 {[%clk 0:02:38]} 9. Nbd2 {[%clk 0:02:51]}  Nbd7 {[%clk 0:02:37]} 10. Re1 {[%clk 0:02:51]}  Bh7 {[%clk 0:02:36]} 11. a3 {[%clk 0:02:48]}  a5 {[%clk 0:02:35]} 12. h3 {[%clk 0:02:42]}  Re8 {[%clk 0:02:12]} 13. e4 {[%clk 0:02:38]}  dxe4 {[%clk 0:02:10]} 14. Nxe4 {[%clk 0:02:34]}  Nxe4 {[%clk 0:02:04]} 15. dxe4 {[%clk 0:02:35]}  Nc5 {[%clk 0:02:04]} 16. Re3 {[%clk 0:02:12]}  Qxd1+ {[%clk 0:01:53]} 17. Rxd1 {[%clk 0:02:10]}  Nxe4 {[%clk 0:01:14]} 18. Ne5 {[%clk 0:02:00]}  Nc5 {[%clk 0:01:08]} 19. Rf3 {[%clk 0:01:44]}  Bf6 {[%clk 0:00:43]} 20. Bf1 {[%clk 0:01:23]}  Red8 {[%clk 0:00:36]} 21. Re1 {[%clk 0:01:13]}  Bxe5 {[%clk 0:00:27]} 22. Bxe5 {[%clk 0:01:11]}  a4 {[%clk 0:00:21]} 23. b4 {[%clk 0:01:08]}  Nb3 {[%clk 0:00:21]} 24. c5 {[%clk 0:01:01]}  Rd7 {[%clk 0:00:19]} 25. g4 {[%clk 0:00:57]}  Rd2 {[%clk 0:00:18]} 26. h4 {[%clk 0:00:54]}  Rad8 {[%clk 0:00:14]} 27. Be2 {[%clk 0:00:48]}  R8d5 {[%clk 0:00:10]} 28. Bc4 {[%clk 0:00:43]}  Rd1 {[%clk 0:00:10]} 29. Re3 {[%clk 0:00:37]}  Rxe1+ {[%clk 0:00:10]} 30. Rxe1 {[%clk 0:00:37]}  Rd2 {[%clk 0:00:09]} 31. g5 {[%clk 0:00:34]}  Nd4 {[%clk 0:00:08]} 32. Kg2 {[%clk 0:00:31]}  Bf5 {[%clk 0:00:07]} 33. Bf4 {[%clk 0:00:26]}  h5 {[%clk 0:00:08]} 34. Bxd2 {[%clk 0:00:26]}  g6 {[%clk 0:00:07]} 35. Be3 {[%clk 0:00:25]}  Nc2 {[%clk 0:00:06]} 36. Rd1 {[%clk 0:00:25]} 1-0


[Site "https://www.chess.com"]

[Event "Titled Tuesday Blitz March 01 Early 2022"]
[White "Abdyzhapar, Asylbek"]
[Black "Yang, Kaiqi"]
[WhiteFideId "13800337"]
[BlackFideId "8604398"]
[WhiteElo "2331"]
[BlackElo "2373"]
[Result "1-0"]
[Round "04"]
[TimeControl "180+1"]
[Date "2022.03.01"]
[WhiteClock "0:00:15"]
[BlackClock "0:00:01"]

1. e4 {[%clk 0:02:59]}  e5 {[%clk 0:02:59]} 2. Nf3 {[%clk 0:02:58]}  Nc6 {[%clk 0:02:59]} 3. Bb5 {[%clk 0:02:58]}  a6 {[%clk 0:02:59]} 4. Ba4 {[%clk 0:02:58]}  Nf6 {[%clk 0:03:00]} 5. O-O {[%clk 0:02:59]}  Nxe4 {[%clk 0:03:00]} 6. d4 {[%clk 0:02:56]}  b5 {[%clk 0:03:00]} 7. Bb3 {[%clk 0:02:55]}  d5 {[%clk 0:03:01]} 8. dxe5 {[%clk 0:02:53]}  Be6 {[%clk 0:03:01]} 9. Be3 {[%clk 0:02:50]}  Be7 {[%clk 0:02:47]} 10. Nbd2 {[%clk 0:02:49]}  Nc5 {[%clk 0:02:47]} 11. c3 {[%clk 0:02:45]}  Bg4 {[%clk 0:02:43]} 12. h3 {[%clk 0:02:44]}  Bh5 {[%clk 0:02:43]} 13. Qe2 {[%clk 0:02:17]}  O-O {[%clk 0:02:38]} 14. Rfe1 {[%clk 0:02:11]}  Nxb3 {[%clk 0:02:22]} 15. axb3 {[%clk 0:02:05]}  Nxe5 {[%clk 0:02:22]} 16. Bd4 {[%clk 0:01:58]}  Nxf3+ {[%clk 0:02:16]} 17. Nxf3 {[%clk 0:01:57]}  Bf6 {[%clk 0:02:11]} 18. Qe3 {[%clk 0:01:48]}  Bxf3 {[%clk 0:02:05]} 19. gxf3 {[%clk 0:01:48]}  Bxd4 {[%clk 0:01:51]} 20. Qxd4 {[%clk 0:01:47]}  Qd6 {[%clk 0:01:45]} 21. Kh1 {[%clk 0:01:45]}  c5 {[%clk 0:01:43]} 22. Qg4 {[%clk 0:01:45]}  Rfe8 {[%clk 0:01:38]} 23. Rg1 {[%clk 0:01:39]}  g6 {[%clk 0:01:38]} 24. Rae1 {[%clk 0:01:35]}  Re5 {[%clk 0:01:20]} 25. Kg2 {[%clk 0:01:33]}  Rae8 {[%clk 0:01:13]} 26. Rxe5 {[%clk 0:01:33]}  Rxe5 {[%clk 0:01:11]} 27. Rd1 {[%clk 0:01:32]}  Kg7 {[%clk 0:01:08]} 28. h4 {[%clk 0:01:32]}  Qf6 {[%clk 0:00:59]} 29. Rd2 {[%clk 0:01:19]}  Rh5 {[%clk 0:00:53]} 30. Qg3 {[%clk 0:01:14]}  d4 {[%clk 0:00:46]} 31. cxd4 {[%clk 0:01:09]}  cxd4 {[%clk 0:00:47]} 32. f4 {[%clk 0:01:00]}  Rf5 {[%clk 0:00:38]} 33. Kf3 {[%clk 0:00:51]}  Qc6+ {[%clk 0:00:37]} 34. Ke2 {[%clk 0:00:51]}  Qe4+ {[%clk 0:00:37]} 35. Kd1 {[%clk 0:00:51]}  Rxf4 {[%clk 0:00:32]} 36. Kc1 {[%clk 0:00:49]}  Rf3 {[%clk 0:00:17]} 37. Qd6 {[%clk 0:00:43]}  d3 {[%clk 0:00:17]} 38. Qc5 {[%clk 0:00:36]}  Rh3 {[%clk 0:00:13]} 39. Qc3+ {[%clk 0:00:34]}  Kh6 {[%clk 0:00:12]} 40. Kb1 {[%clk 0:00:34]}  f5 {[%clk 0:00:08]} 41. Ka2 {[%clk 0:00:31]}  b4 {[%clk 0:00:08]} 42. Qf6 {[%clk 0:00:29]}  Qf4 {[%clk 0:00:08]} 43. Rd1 {[%clk 0:00:26]}  Rf3 {[%clk 0:00:08]} 44. Rg1 {[%clk 0:00:22]}  Rxf2 {[%clk 0:00:02]} 45. Qf8+ {[%clk 0:00:19]}  Kh5 {[%clk 0:00:02]} 46. Rg5+ {[%clk 0:00:19]}  Qxg5 {[%clk 0:00:01]} 47. hxg5 {[%clk 0:00:19]}  Kg4 {[%clk 0:00:01]} 48. Qxb4+ {[%clk 0:00:18]}  f4 {[%clk 0:00:01]} 49. Qd4 {[%clk 0:00:17]}  Kg3 {[%clk 0:00:01]} 50. Qxd3+ {[%clk 0:00:16]}  f3 {[%clk 0:00:01]} 51. Qxa6 {[%clk 0:00:16]}  Re2 {[%clk 0:00:01]} 52. Qd6+ {[%clk 0:00:16]}  Kg2 {[%clk 0:00:01]} 53. Qd5 {[%clk 0:00:16]}  Re1 {[%clk 0:00:01]} 54. b4 {[%clk 0:00:16]}  Re3 {[%clk 0:00:01]} 55. b5 {[%clk 0:00:16]}  Kg1 {[%clk 0:00:01]} 56. Qd4 {[%clk 0:00:15]}  Kf2 {[%clk 0:00:01]} 1-0


[Site "https://www.chess.com"]

[Event "Titled Tuesday Blitz March 01 Early 2022"]
[White "Arabidze, Meri"]
[Black "Tomiello, Mateus Costamilan"]
[WhiteFideId "13604040"]
[BlackFideId "22701958"]
[WhiteElo "2329"]
[BlackElo "1975"]
[Result "1-0"]
[Round "04"]
[TimeControl "180+1"]
[Date "2022.03.01"]
[WhiteClock "0:00:46"]
[BlackClock "0:00:02"]

1. d4 {[%clk 0:03:00]}  d5 {[%clk 0:02:59]} 2. c4 {[%clk 0:03:01]}  c6 {[%clk 0:02:59]} 3. Nf3 {[%clk 0:03:01]}  Nf6 {[%clk 0:02:59]} 4. e3 {[%clk 0:03:01]}  e6 {[%clk 0:02:59]} 5. Nbd2 {[%clk 0:03:00]}  Nbd7 {[%clk 0:03:00]} 6. Bd3 {[%clk 0:03:00]}  g6 {[%clk 0:02:53]} 7. O-O {[%clk 0:02:59]}  Bg7 {[%clk 0:02:54]} 8. e4 {[%clk 0:03:00]}  dxe4 {[%clk 0:02:52]} 9. Nxe4 {[%clk 0:03:01]}  Nxe4 {[%clk 0:02:53]} 10. Bxe4 {[%clk 0:03:01]}  O-O {[%clk 0:02:52]} 11. Bg5 {[%clk 0:03:01]}  Qb6 {[%clk 0:02:48]} 12. Qd2 {[%clk 0:02:58]}  c5 {[%clk 0:02:45]} 13. Rad1 {[%clk 0:02:53]}  cxd4 {[%clk 0:02:42]} 14. Nxd4 {[%clk 0:02:53]}  Nc5 {[%clk 0:02:32]} 15. Bf3 {[%clk 0:02:39]}  e5 {[%clk 0:02:30]} 16. Nb5 {[%clk 0:02:34]}  e4 {[%clk 0:02:19]} 17. Be2 {[%clk 0:02:32]}  Be6 {[%clk 0:02:13]} 18. b4 {[%clk 0:02:23]}  Na4 {[%clk 0:01:23]} 19. c5 {[%clk 0:02:22]}  Qc6 {[%clk 0:01:21]} 20. Nd4 {[%clk 0:02:21]}  Qd5 {[%clk 0:01:12]} 21. Nxe6 {[%clk 0:01:45]}  Qxe6 {[%clk 0:01:11]} 22. Rc1 {[%clk 0:01:23]}  a5 {[%clk 0:00:44]} 23. b5 {[%clk 0:01:17]}  Qe5 {[%clk 0:00:40]} 24. Bf4 {[%clk 0:01:08]}  Qd4 {[%clk 0:00:38]} 25. Qxd4 {[%clk 0:01:02]}  Bxd4 {[%clk 0:00:39]} 26. c6 {[%clk 0:01:03]}  bxc6 {[%clk 0:00:37]} 27. Rxc6 {[%clk 0:01:03]}  Nc3 {[%clk 0:00:36]} 28. Bc4 {[%clk 0:01:02]}  Rac8 {[%clk 0:00:32]} 29. h4 {[%clk 0:00:49]}  Rxc6 {[%clk 0:00:24]} 30. bxc6 {[%clk 0:00:50]}  Kg7 {[%clk 0:00:15]} 31. c7 {[%clk 0:00:49]}  a4 {[%clk 0:00:06]} 32. Ba6 {[%clk 0:00:48]}  Nxa2 {[%clk 0:00:04]} 33. c8=Q {[%clk 0:00:48]}  Rxc8 {[%clk 0:00:03]} 34. Bxc8 {[%clk 0:00:48]}  Nc3 {[%clk 0:00:02]} 35. Bd6 {[%clk 0:00:46]} 1-0


[Site "https://www.chess.com"]

[Event "Titled Tuesday Blitz March 01 Early 2022"]
[White "Asadli, Vugar"]
[Black "Ohanyan, Emin"]
[WhiteFideId "13405764"]
[BlackFideId "13312022"]
[WhiteElo "2635"]
[BlackElo "1809"]
[Result "1-0"]
[Round "04"]
[TimeControl "180+1"]
[Date "2022.03.01"]
[WhiteClock "0:00:19"]
[BlackClock "0:00:01"]

1. e4 {[%clk 0:03:00]}  e5 {[%clk 0:02:59]} 2. Nf3 {[%clk 0:03:00]}  Nc6 {[%clk 0:02:59]} 3. Bc4 {[%clk 0:03:01]}  Nf6 {[%clk 0:02:59]} 4. d3 {[%clk 0:02:59]}  d5 {[%clk 0:02:58]} 5. exd5 {[%clk 0:02:56]}  Nxd5 {[%clk 0:02:59]} 6. O-O {[%clk 0:02:56]}  Bc5 {[%clk 0:02:59]} 7. Nc3 {[%clk 0:02:49]}  Nxc3 {[%clk 0:02:53]} 8. bxc3 {[%clk 0:02:50]}  O-O {[%clk 0:02:18]} 9. Re1 {[%clk 0:02:49]}  Qf6 {[%clk 0:01:57]} 10. h3 {[%clk 0:02:34]}  Bd6 {[%clk 0:01:14]} 11. Bd5 {[%clk 0:02:29]}  Be6 {[%clk 0:01:13]} 12. Bxc6 {[%clk 0:02:23]}  bxc6 {[%clk 0:01:14]} 13. Ng5 {[%clk 0:02:23]}  Bf5 {[%clk 0:01:01]} 14. Qf3 {[%clk 0:02:17]}  Qg6 {[%clk 0:00:53]} 15. Ne4 {[%clk 0:02:02]}  Bd7 {[%clk 0:00:49]} 16. Be3 {[%clk 0:01:40]}  f5 {[%clk 0:00:44]} 17. Nc5 {[%clk 0:01:40]}  Be8 {[%clk 0:00:38]} 18. Nb3 {[%clk 0:01:28]}  f4 {[%clk 0:00:36]} 19. Bc5 {[%clk 0:01:20]}  Bd7 {[%clk 0:00:37]} 20. d4 {[%clk 0:01:14]}  exd4 {[%clk 0:00:27]} 21. cxd4 {[%clk 0:01:15]}  Rae8 {[%clk 0:00:26]} 22. c3 {[%clk 0:01:11]}  h5 {[%clk 0:00:23]} 23. Nd2 {[%clk 0:00:58]}  Bxc5 {[%clk 0:00:16]} 24. dxc5 {[%clk 0:00:59]}  Bf5 {[%clk 0:00:10]} 25. Rxe8 {[%clk 0:00:51]}  Rxe8 {[%clk 0:00:11]} 26. Kh2 {[%clk 0:00:44]}  Re5 {[%clk 0:00:10]} 27. Qxf4 {[%clk 0:00:40]}  Rxc5 {[%clk 0:00:11]} 28. Nf3 {[%clk 0:00:41]}  Qf6 {[%clk 0:00:08]} 29. Re1 {[%clk 0:00:36]}  Bg6 {[%clk 0:00:06]} 30. Qxc7 {[%clk 0:00:27]}  Rxc3 {[%clk 0:00:06]} 31. h4 {[%clk 0:00:25]}  Kh7 {[%clk 0:00:03]} 32. Ng5+ {[%clk 0:00:21]}  Kh6 {[%clk 0:00:03]} 33. Qb8 {[%clk 0:00:21]}  Qf5 {[%clk 0:00:01]} 34. Qh8+ {[%clk 0:00:19]}  Bh7 {[%clk 0:00:01]} 35. Re6+ {[%clk 0:00:20]}  g6 {[%clk 0:00:01]} 36. Qxh7# {[%clk 0:00:19]} 1-0


[Site "https://www.chess.com"]

[Event "Titled Tuesday Blitz March 01 Early 2022"]
[White "Aydin, Gulenay"]
[Black "Terzi, Alexei"]
[WhiteFideId "34557431"]
[BlackFideId "13505076"]
[WhiteElo "1429"]
[BlackElo "2031"]
[Result "0-1"]
[Round "04"]
[TimeControl "180+1"]
[Date "2022.03.01"]
[WhiteClock "0:00:04"]
[BlackClock "0:00:07"]

1. e4 {[%clk 0:03:00]}  e6 {[%clk 0:02:57]} 2. d4 {[%clk 0:03:00]}  d5 {[%clk 0:02:58]} 3. Nd2 {[%clk 0:03:01]}  Nc6 {[%clk 0:02:51]} 4. Ngf3 {[%clk 0:03:01]}  Nf6 {[%clk 0:02:51]} 5. e5 {[%clk 0:03:01]}  Nd7 {[%clk 0:02:51]} 6. c4 {[%clk 0:03:02]}  dxc4 {[%clk 0:02:46]} 7. Nxc4 {[%clk 0:03:03]}  Nb6 {[%clk 0:02:45]} 8. a3 {[%clk 0:03:02]}  Be7 {[%clk 0:02:44]} 9. Bd3 {[%clk 0:03:03]}  h6 {[%clk 0:02:43]} 10. O-O {[%clk 0:03:03]}  a6 {[%clk 0:02:30]} 11. Be3 {[%clk 0:02:56]}  Nxc4 {[%clk 0:02:28]} 12. Bxc4 {[%clk 0:02:57]}  b5 {[%clk 0:02:28]} 13. Ba2 {[%clk 0:02:57]}  Bb7 {[%clk 0:02:28]} 14. Qe2 {[%clk 0:02:55]}  O-O {[%clk 0:02:21]} 15. Rad1 {[%clk 0:02:55]}  Nb8 {[%clk 0:02:21]} 16. Bb1 {[%clk 0:02:55]}  Nd7 {[%clk 0:02:06]} 17. Rfe1 {[%clk 0:02:44]}  Re8 {[%clk 0:02:05]} 18. Nd2 {[%clk 0:02:26]}  Nb6 {[%clk 0:02:00]} 19. Qd3 {[%clk 0:02:21]}  f5 {[%clk 0:01:45]} 20. exf6 {[%clk 0:02:14]}  Bxf6 {[%clk 0:01:45]} 21. Qh7+ {[%clk 0:02:11]}  Kf8 {[%clk 0:01:45]} 22. Bg6 {[%clk 0:01:43]}  Qd6 {[%clk 0:01:21]} 23. Bxh6 {[%clk 0:01:25]}  Nd5 {[%clk 0:00:58]} 24. Ne4 {[%clk 0:01:19]}  Qd8 {[%clk 0:00:53]} 25. Ng5 {[%clk 0:00:54]}  Nf4 {[%clk 0:00:47]} 26. Bxe8 {[%clk 0:00:25]}  Qd5 {[%clk 0:00:46]} 27. f3 {[%clk 0:00:11]}  Rxe8 {[%clk 0:00:46]} 28. Ne4 {[%clk 0:00:09]}  Bxd4+ {[%clk 0:00:18]} 29. Kh1 {[%clk 0:00:09]}  Qe5 {[%clk 0:00:18]} 30. Rxd4 {[%clk 0:00:07]}  Qxd4 {[%clk 0:00:18]} 31. Ng5 {[%clk 0:00:05]}  Qf6 {[%clk 0:00:12]} 32. Qh8+ {[%clk 0:00:03]}  Ke7 {[%clk 0:00:12]} 33. Qxg7+ {[%clk 0:00:04]}  Qxg7 {[%clk 0:00:12]} 34. Bxg7 {[%clk 0:00:05]}  Rg8 {[%clk 0:00:12]} 35. Be5 {[%clk 0:00:06]}  Nxg2 {[%clk 0:00:09]} 36. Kxg2 {[%clk 0:00:05]}  Rxg5+ {[%clk 0:00:10]} 37. Kf2 {[%clk 0:00:06]}  Rf5 {[%clk 0:00:10]} 38. Bxc7 {[%clk 0:00:06]}  Rxf3+ {[%clk 0:00:10]} 39. Ke2 {[%clk 0:00:06]}  Rf5 {[%clk 0:00:10]} 40. Rg1 {[%clk 0:00:05]}  Kd7 {[%clk 0:00:08]} 41. Ba5 {[%clk 0:00:05]}  Bf3+ {[%clk 0:00:08]} 42. Kd2 {[%clk 0:00:05]}  Kd6 {[%clk 0:00:08]} 43. Bb4+ {[%clk 0:00:05]}  Kc6 {[%clk 0:00:08]} 44. Ke3 {[%clk 0:00:05]}  Bd5 {[%clk 0:00:08]} 45. Rg8 {[%clk 0:00:05]}  Rf3+ {[%clk 0:00:09]} 46. Kd4 {[%clk 0:00:05]}  Rh3 {[%clk 0:00:09]} 47. Rc8+ {[%clk 0:00:02]}  Kd7 {[%clk 0:00:10]} 48. Rb8 {[%clk 0:00:02]}  Rxh2 {[%clk 0:00:10]} 49. Rg8 {[%clk 0:00:02]}  Rxb2 {[%clk 0:00:08]} 50. Kc5 {[%clk 0:00:03]}  Rc2+ {[%clk 0:00:08]} 51. Kb6 {[%clk 0:00:04]}  Rc6+ {[%clk 0:00:08]} 52. Ka7 {[%clk 0:00:04]}  e5 {[%clk 0:00:06]} 53. Rg7+ {[%clk 0:00:04]}  Ke6 {[%clk 0:00:06]} 54. Rg6+ {[%clk 0:00:05]}  Kf5 {[%clk 0:00:07]} 55. Rg1 {[%clk 0:00:05]}  e4 {[%clk 0:00:07]} 56. Re1 {[%clk 0:00:06]}  Bc4 {[%clk 0:00:06]} 57. Kb7 {[%clk 0:00:05]}  Re6 {[%clk 0:00:06]} 58. Kc7 {[%clk 0:00:06]}  e3 {[%clk 0:00:06]} 59. Bd6 {[%clk 0:00:06]}  e2 {[%clk 0:00:06]} 60. Kd7 {[%clk 0:00:06]}  Re4 {[%clk 0:00:06]} 61. Kc7 {[%clk 0:00:06]}  Kg4 {[%clk 0:00:06]} 62. Kc6 {[%clk 0:00:06]}  Re6 {[%clk 0:00:06]} 63. Kc5 {[%clk 0:00:06]}  Rxd6 {[%clk 0:00:06]} 64. Kxd6 {[%clk 0:00:07]}  Kf3 {[%clk 0:00:06]} 65. Kc5 {[%clk 0:00:07]}  Kf2 {[%clk 0:00:06]} 66. Rxe2+ {[%clk 0:00:07]}  Kxe2 {[%clk 0:00:06]} 67. Kb6 {[%clk 0:00:08]}  Kd3 {[%clk 0:00:06]} 68. Kxa6 {[%clk 0:00:08]}  b4+ {[%clk 0:00:06]} 69. Kb6 {[%clk 0:00:04]}  bxa3 {[%clk 0:00:07]} 0-1


[Site "https://www.chess.com"]

[Event "Titled Tuesday Blitz March 01 Early 2022"]
[White "Babazada, Khazar"]
[Black "Al-Tarboush, Ward"]
[WhiteFideId "13413554"]
[BlackFideId "7601450"]
[WhiteElo "2418"]
[BlackElo "2276"]
[Result "1-0"]
[Round "04"]
[TimeControl "180+1"]
[Date "2022.03.01"]
[WhiteClock "0:00:23"]
[BlackClock "0:00:08"]

1. e4 {[%clk 0:03:00]}  e6 {[%clk 0:02:59]} 2. d4 {[%clk 0:02:58]}  d5 {[%clk 0:02:59]} 3. Nc3 {[%clk 0:02:59]}  Nf6 {[%clk 0:03:00]} 4. e5 {[%clk 0:02:58]}  Nfd7 {[%clk 0:02:59]} 5. Nce2 {[%clk 0:02:59]}  c5 {[%clk 0:02:59]} 6. c3 {[%clk 0:02:58]}  Nc6 {[%clk 0:03:00]} 7. Nf3 {[%clk 0:02:57]}  Be7 {[%clk 0:02:53]} 8. a3 {[%clk 0:02:53]}  f6 {[%clk 0:02:53]} 9. Nf4 {[%clk 0:02:50]}  Nf8 {[%clk 0:02:42]} 10. Nh5 {[%clk 0:02:44]}  Rg8 {[%clk 0:02:37]} 11. Bd3 {[%clk 0:02:42]}  f5 {[%clk 0:02:37]} 12. Rg1 {[%clk 0:02:34]}  g6 {[%clk 0:02:36]} 13. Nf6+ {[%clk 0:02:33]}  Bxf6 {[%clk 0:02:36]} 14. exf6 {[%clk 0:02:34]}  Qxf6 {[%clk 0:02:37]} 15. Bg5 {[%clk 0:02:33]}  Qf7 {[%clk 0:02:36]} 16. Bb5 {[%clk 0:02:28]}  Nd7 {[%clk 0:02:35]} 17. Qe2 {[%clk 0:02:27]}  a6 {[%clk 0:02:34]} 18. Bxc6 {[%clk 0:02:21]}  bxc6 {[%clk 0:02:34]} 19. dxc5 {[%clk 0:02:20]}  Nxc5 {[%clk 0:02:30]} 20. Ne5 {[%clk 0:02:20]}  Qb7 {[%clk 0:02:30]} 21. O-O-O {[%clk 0:02:14]}  Bd7 {[%clk 0:02:26]} 22. Rge1 {[%clk 0:02:09]}  Ne4 {[%clk 0:02:26]} 23. Be3 {[%clk 0:02:00]}  O-O-O {[%clk 0:02:22]} 24. f3 {[%clk 0:01:58]}  Nd6 {[%clk 0:02:22]} 25. Bc5 {[%clk 0:01:46]}  Be8 {[%clk 0:02:22]} 26. Bxd6 {[%clk 0:01:44]}  Rxd6 {[%clk 0:02:23]} 27. Nc4 {[%clk 0:01:45]}  Rd8 {[%clk 0:02:13]} 28. Qxe6+ {[%clk 0:01:44]}  Bd7 {[%clk 0:01:42]} 29. Nd6+ {[%clk 0:01:43]}  Kc7 {[%clk 0:01:43]} 30. Nxb7 {[%clk 0:01:40]}  Bxe6 {[%clk 0:01:25]} 31. Nxd8 {[%clk 0:01:27]}  Bd7 {[%clk 0:01:24]} 32. Nf7 {[%clk 0:01:27]}  a5 {[%clk 0:01:20]} 33. Re7 {[%clk 0:01:27]}  Rg7 {[%clk 0:01:20]} 34. Ree1 {[%clk 0:01:25]}  Rxf7 {[%clk 0:01:20]} 35. f4 {[%clk 0:01:23]}  Kd6 {[%clk 0:01:18]} 36. c4 {[%clk 0:01:20]}  Rf8 {[%clk 0:01:15]} 37. Kc2 {[%clk 0:01:18]}  a4 {[%clk 0:01:13]} 38. Re5 {[%clk 0:01:15]}  Be6 {[%clk 0:01:09]} 39. c5+ {[%clk 0:01:16]}  Kd7 {[%clk 0:01:04]} 40. Rde1 {[%clk 0:01:15]}  Rf6 {[%clk 0:01:02]} 41. Kc3 {[%clk 0:01:15]}  h6 {[%clk 0:00:58]} 42. h4 {[%clk 0:01:15]}  g5 {[%clk 0:00:52]} 43. hxg5 {[%clk 0:01:16]}  hxg5 {[%clk 0:00:53]} 44. fxg5 {[%clk 0:01:16]}  Rg6 {[%clk 0:00:53]} 45. Kb4 {[%clk 0:01:16]}  d4 {[%clk 0:00:49]} 46. Rd1 {[%clk 0:01:16]}  Rxg5 {[%clk 0:00:45]} 47. Rxd4+ {[%clk 0:01:16]}  Bd5 {[%clk 0:00:45]} 48. Re2 {[%clk 0:01:11]}  Rg8 {[%clk 0:00:41]} 49. Kxa4 {[%clk 0:01:06]}  Rb8 {[%clk 0:00:40]} 50. Red2 {[%clk 0:00:41]}  Kc7 {[%clk 0:00:39]} 51. Rxd5 {[%clk 0:00:37]}  cxd5 {[%clk 0:00:40]} 52. b4 {[%clk 0:00:38]}  Kc6 {[%clk 0:00:39]} 53. Re2 {[%clk 0:00:38]}  d4 {[%clk 0:00:37]} 54. Re6+ {[%clk 0:00:38]}  Kd5 {[%clk 0:00:37]} 55. Rd6+ {[%clk 0:00:26]}  Kc4 {[%clk 0:00:37]} 56. Ka5 {[%clk 0:00:24]}  d3 {[%clk 0:00:37]} 57. c6 {[%clk 0:00:22]}  Kc3 {[%clk 0:00:14]} 58. b5 {[%clk 0:00:18]}  d2 {[%clk 0:00:08]} 59. Rxd2 {[%clk 0:00:17]}  Kxd2 {[%clk 0:00:08]} 60. b6 {[%clk 0:00:18]}  Ke3 {[%clk 0:00:06]} 61. b7 {[%clk 0:00:18]}  Kf2 {[%clk 0:00:03]} 62. Kb6 {[%clk 0:00:18]}  Kxg2 {[%clk 0:00:04]} 63. c7 {[%clk 0:00:18]}  Rxb7+ {[%clk 0:00:04]} 64. Kxb7 {[%clk 0:00:19]}  f4 {[%clk 0:00:05]} 65. c8=Q {[%clk 0:00:20]}  f3 {[%clk 0:00:05]} 66. a4 {[%clk 0:00:21]}  f2 {[%clk 0:00:06]} 67. Qc2 {[%clk 0:00:21]}  Kg1 {[%clk 0:00:06]} 68. Qxf2+ {[%clk 0:00:22]}  Kxf2 {[%clk 0:00:07]} 69. a5 {[%clk 0:00:22]}  Ke3 {[%clk 0:00:08]} 70. a6 {[%clk 0:00:23]} 1-0


[Site "https://www.chess.com"]